[Event "*** Titled Tuesday Blitz"]
[Site "Chess.com"]
[Date "2020.12.29"]
[Round "6"]
[White "DarZay"]
[Black "Kale36"]
[Result "0-1"]
[WhiteElo "2099"]
[BlackElo "2273"]
[TimeControl "180+1"]
[EndTime "11:06:41 PST"]
[Termination "Kale36 won on time"]

1. e4 {[%clk 0:03:00.9]} 1... Nc6 {[%clk 0:02:48.8]} 2. d4 {[%clk 0:03:00]} 2...
d5 {[%clk 0:02:47.5]} 3. e5 {[%clk 0:02:56.1]} 3... f6 {[%clk 0:02:47.5]} 4. Nf3
{[%clk 0:02:39.6]} 4... Bg4 {[%clk 0:02:44.7]} 5. Bb5 {[%clk 0:02:34.6]} 5...
fxe5 {[%clk 0:02:13.5]} 6. Bxc6+ {[%clk 0:02:31.2]} 6... bxc6 {[%clk 0:02:13.1]}
7. dxe5 {[%clk 0:02:30.8]} 7... e6 {[%clk 0:02:12.8]} 8. h4 {[%clk 0:02:29.5]}
8... Bc5 {[%clk 0:02:09.9]} 9. Bg5 {[%clk 0:02:27.7]} 9... Ne7 {[%clk
0:02:07.9]} 10. Qd2 {[%clk 0:02:11.3]} 10... Bxf3 {[%clk 0:02:05.6]} 11. gxf3
{[%clk 0:02:11]} 11... O-O {[%clk 0:02:05.6]} 12. Rg1 {[%clk 0:02:07.8]} 12...
Rxf3 {[%clk 0:02:00.7]} 13. Rg2 {[%clk 0:02:00.5]} 13... Qf8 {[%clk 0:01:53.7]}
14. Bf6 {[%clk 0:01:54.9]} 14... Ng6 {[%clk 0:01:45.6]} 15. h5 {[%clk
0:01:48.6]} 15... gxf6 {[%clk 0:01:42.7]} 16. hxg6 {[%clk 0:01:47.4]} 16... fxe5
{[%clk 0:01:28.3]} 17. gxh7+ {[%clk 0:01:31.2]} 17... Kxh7 {[%clk 0:01:15.7]}
18. Qg5 {[%clk 0:01:19.7]} 18... Bxf2+ {[%clk 0:01:13]} 19. Kd1 {[%clk
0:01:12.3]} 19... Qh6 {[%clk 0:00:52.3]} 20. Qxh6+ {[%clk 0:00:51.6]} 20... Kxh6
{[%clk 0:00:51.8]} 21. Nd2 {[%clk 0:00:47.4]} 21... Rf4 {[%clk 0:00:40.4]} 22.
Ke2 {[%clk 0:00:46]} 22... Raf8 {[%clk 0:00:40]} 23. Nf3 {[%clk 0:00:38.6]}
23... Kh5 {[%clk 0:00:28.3]} 24. Rh1+ {[%clk 0:00:36.4]} 24... Bh4 {[%clk
0:00:27.8]} 25. Rg5+ {[%clk 0:00:18.8]} 25... Kh6 {[%clk 0:00:24.9]} 26. Rg3
{[%clk 0:00:16.6]} 26... Kh5 {[%clk 0:00:21.4]} 27. Rgh3 {[%clk 0:00:16.5]}
27... Rxf3 {[%clk 0:00:16]} 28. Rxf3 {[%clk 0:00:14.1]} 28... Rxf3 {[%clk
0:00:13.3]} 29. Kxf3 {[%clk 0:00:14.3]} 29... Kg5 {[%clk 0:00:12.6]} 30. Rg1+
{[%clk 0:00:13.4]} 30... Kf5 {[%clk 0:00:12.4]} 31. Rg7 {[%clk 0:00:12.8]} 31...
e4+ {[%clk 0:00:13.3]} 32. Ke2 {[%clk 0:00:12.3]} 32... Ke5 {[%clk 0:00:09.5]}
33. Rxc7 {[%clk 0:00:11.9]} 33... Kd6 {[%clk 0:00:07.7]} 34. Rxa7 {[%clk
0:00:11.9]} 34... c5 {[%clk 0:00:08.2]} 35. Rb7 {[%clk 0:00:10.3]} 35... d4
{[%clk 0:00:07.7]} 36. Rb6+ {[%clk 0:00:08.6]} 36... Kd5 {[%clk 0:00:07.5]} 37.
a4 {[%clk 0:00:07.9]} 37... c4 {[%clk 0:00:07.7]} 38. Rb5+ {[%clk 0:00:06.5]}
38... Kc6 {[%clk 0:00:07.4]} 39. Re5 {[%clk 0:00:04]} 39... d3+ {[%clk
0:00:07.6]} 40. cxd3 {[%clk 0:00:03.8]} 40... exd3+ {[%clk 0:00:08.5]} 41. Kd1
{[%clk 0:00:02.3]} 41... Kd6 {[%clk 0:00:07.9]} 42. Re4 {[%clk 0:00:02.2]} 42...
Kd5 {[%clk 0:00:05.6]} 43. Rxh4 {[%clk 0:00:02]} 43... e5 {[%clk 0:00:06.5]} 44.
a5 {[%clk 0:00:01.2]} 44... e4 {[%clk 0:00:06]} 0-1

[Event "*** Titled Tuesday Blitz"]
[Site "Chess.com"]
[Date "2020.12.29"]
[Round "6"]
[White "BabyBoss31"]
[Black "Kopytkin"]
[Result "0-1"]
[WhiteElo "2206"]
[BlackElo "2376"]
[TimeControl "180+1"]
[EndTime "11:06:42 PST"]
[Termination "Kopytkin won by resignation"]

1. e4 {[%clk 0:03:00.9]} 1... Nf6 {[%clk 0:02:59.7]} 2. e5 {[%clk 0:03:00.2]}
2... Nd5 {[%clk 0:02:58.5]} 3. d4 {[%clk 0:02:57.8]} 3... d6 {[%clk 0:02:58.8]}
4. Nf3 {[%clk 0:02:55.9]} 4... g6 {[%clk 0:02:58.5]} 5. Bc4 {[%clk 0:02:52.7]}
5... Nb6 {[%clk 0:02:58.6]} 6. Bb3 {[%clk 0:02:49.8]} 6... d5 {[%clk 0:02:58.9]}
7. O-O {[%clk 0:02:41.6]} 7... Bg7 {[%clk 0:02:58.9]} 8. c3 {[%clk 0:02:38.4]}
8... Nc6 {[%clk 0:02:59.1]} 9. Re1 {[%clk 0:02:27]} 9... O-O {[%clk 0:02:57]}
10. Nbd2 {[%clk 0:02:24.5]} 10... Bg4 {[%clk 0:02:56.1]} 11. h3 {[%clk
0:02:16.5]} 11... Bxf3 {[%clk 0:02:56.1]} 12. Nxf3 {[%clk 0:02:17.4]} 12... f6
{[%clk 0:02:52.3]} 13. exf6 {[%clk 0:02:08.6]} 13... exf6 {[%clk 0:02:52]} 14.
Bf4 {[%clk 0:02:06.6]} 14... Qd7 {[%clk 0:02:52.2]} 15. Qd2 {[%clk 0:01:57.7]}
15... Na5 {[%clk 0:02:51.1]} 16. Re2 {[%clk 0:01:48.7]} 16... Nac4 {[%clk
0:02:50.6]} 17. Qc2 {[%clk 0:01:47.5]} 17... Rfe8 {[%clk 0:02:48.3]} 18. Rae1
{[%clk 0:01:46.6]} 18... Rxe2 {[%clk 0:02:48]} 19. Rxe2 {[%clk 0:01:47.5]} 19...
Nd6 {[%clk 0:02:45.1]} 20. Bxd6 {[%clk 0:01:28]} 20... Qxd6 {[%clk 0:02:43]} 21.
Qe4 {[%clk 0:01:27.7]} 21... Kf7 {[%clk 0:02:31.8]} 22. Qh4 {[%clk 0:01:05.1]}
22... c6 {[%clk 0:02:21.7]} 23. Bc2 {[%clk 0:00:58.7]} 23... Rh8 {[%clk
0:02:17]} 24. Nd2 {[%clk 0:00:46]} 24... Nc8 {[%clk 0:02:12.7]} 25. Nb3 {[%clk
0:00:41.5]} 25... b6 {[%clk 0:02:10.2]} 26. Qg4 {[%clk 0:00:35.2]} 26... f5
{[%clk 0:02:08.4]} 27. Qf3 {[%clk 0:00:30.6]} 27... Re8 {[%clk 0:02:06.9]} 28.
g4 {[%clk 0:00:07.2]} 28... Rxe2 {[%clk 0:02:05.9]} 29. Qxe2 {[%clk 0:00:08.1]}
29... fxg4 {[%clk 0:01:58.1]} 30. hxg4 {[%clk 0:00:09]} 30... Qf6 {[%clk
0:01:55.4]} 31. Nd2 {[%clk 0:00:08.8]} 31... Nd6 {[%clk 0:01:55]} 32. Nf3 {[%clk
0:00:08.7]} 32... Qf4 {[%clk 0:01:54.8]} 33. Ne5+ {[%clk 0:00:08.2]} 33... Bxe5
{[%clk 0:01:54.6]} 34. dxe5 {[%clk 0:00:09.1]} 34... Ne4 {[%clk 0:01:46.4]} 35.
f3 {[%clk 0:00:06.4]} 35... Qg3+ {[%clk 0:01:36.6]} 36. Kf1 {[%clk 0:00:05.9]}
36... Qh3+ {[%clk 0:01:28.1]} 37. Ke1 {[%clk 0:00:03.5]} 37... Qh1+ {[%clk
0:01:23.8]} 38. Qf1 {[%clk 0:00:04.1]} 38... Qxf1+ {[%clk 0:01:20]} 39. Kxf1
{[%clk 0:00:05]} 39... Nd2+ {[%clk 0:01:19.1]} 40. Ke2 {[%clk 0:00:05.5]} 40...
Nc4 {[%clk 0:01:19.4]} 41. f4 {[%clk 0:00:05.8]} 41... Nxb2 {[%clk 0:01:19.2]}
42. Bb3 {[%clk 0:00:06.1]} 42... Ke6 {[%clk 0:01:17.1]} 43. Kd2 {[%clk
0:00:05.8]} 43... g5 {[%clk 0:01:10.4]} 44. fxg5 {[%clk 0:00:02.8]} 44... Kxe5
{[%clk 0:01:08.7]} 45. Bc2 {[%clk 0:00:03.4]} 45... Nc4+ {[%clk 0:01:05]} 46.
Ke2 {[%clk 0:00:03.1]} 46... Ke6 {[%clk 0:00:55.9]} 47. Bxh7 {[%clk 0:00:04]}
47... Nd6 {[%clk 0:00:52.8]} 48. Bd3 {[%clk 0:00:04]} 48... c5 {[%clk
0:00:52.5]} 49. Ba6 {[%clk 0:00:03.8]} 49... b5 {[%clk 0:00:52.2]} 50. Kd3
{[%clk 0:00:02.7]} 50... Ke5 {[%clk 0:00:52.4]} 51. g6 {[%clk 0:00:02.6]} 51...
Kf6 {[%clk 0:00:52.7]} 52. a4 {[%clk 0:00:02]} 52... bxa4 {[%clk 0:00:52.2]} 53.
Kc2 {[%clk 0:00:02.5]} 53... Kxg6 {[%clk 0:00:51.6]} 54. Kb2 {[%clk 0:00:02.7]}
54... Kg5 {[%clk 0:00:50.4]} 55. Ka3 {[%clk 0:00:03.3]} 55... Kxg4 {[%clk
0:00:47.3]} 56. Kxa4 {[%clk 0:00:03.9]} 56... Kf4 {[%clk 0:00:47.7]} 57. Bf1
{[%clk 0:00:03.6]} 57... Ke3 {[%clk 0:00:44]} 58. Ka5 {[%clk 0:00:04.1]} 58...
d4 {[%clk 0:00:44.4]} 59. cxd4 {[%clk 0:00:04.1]} 59... cxd4 {[%clk 0:00:44.7]}
60. Ka6 {[%clk 0:00:04.8]} 60... Nc8 {[%clk 0:00:41.9]} 61. Kb7 {[%clk
0:00:04.6]} 61... d3 {[%clk 0:00:40.8]} 62. Kxc8 {[%clk 0:00:01.7]} 62... d2
{[%clk 0:00:40]} 63. Kb7 {[%clk 0:00:02.4]} 63... d1=Q {[%clk 0:00:39.7]} 64.
Kxa7 {[%clk 0:00:02.9]} 64... Qxf1 {[%clk 0:00:39.5]} 0-1

[Event "*** Titled Tuesday Blitz"]
[Site "Chess.com"]
[Date "2020.12.29"]
[Round "6"]
[White "Everyfishknows"]
[Black "chessmachine14"]
[Result "1-0"]
[WhiteElo "2405"]
[BlackElo "2238"]
[TimeControl "180+1"]
[EndTime "11:06:43 PST"]
[Termination "Everyfishknows won by checkmate"]

1. d4 {[%clk 0:03:00.9]} 1... Nf6 {[%clk 0:02:59.6]} 2. c4 {[%clk 0:03:00.7]}
2... g6 {[%clk 0:03:00]} 3. Nc3 {[%clk 0:02:58.8]} 3... Bg7 {[%clk 0:03:00.5]}
4. e4 {[%clk 0:02:58.2]} 4... O-O {[%clk 0:03:00.5]} 5. Nf3 {[%clk 0:02:58.8]}
5... d6 {[%clk 0:02:59.1]} 6. Be2 {[%clk 0:02:54.9]} 6... e5 {[%clk 0:02:58.9]}
7. O-O {[%clk 0:02:55.3]} 7... Nc6 {[%clk 0:02:58.7]} 8. Be3 {[%clk 0:02:55.8]}
8... exd4 {[%clk 0:02:57.2]} 9. Nxd4 {[%clk 0:02:55.7]} 9... Re8 {[%clk
0:02:57.6]} 10. f3 {[%clk 0:02:55.2]} 10... Bd7 {[%clk 0:02:55.2]} 11. Qd2
{[%clk 0:02:54.2]} 11... a6 {[%clk 0:02:53.4]} 12. Rac1 {[%clk 0:02:52.1]} 12...
Rb8 {[%clk 0:02:53.7]} 13. Rfd1 {[%clk 0:02:49]} 13... Nxd4 {[%clk 0:02:07]} 14.
Bxd4 {[%clk 0:02:47.2]} 14... b5 {[%clk 0:02:07]} 15. Nd5 {[%clk 0:02:45.7]}
15... bxc4 {[%clk 0:01:53.1]} 16. Bxc4 {[%clk 0:02:40.9]} 16... Nxd5 {[%clk
0:01:27.4]} 17. Bxd5 {[%clk 0:02:37.6]} 17... Be6 {[%clk 0:00:50.4]} 18. Bxe6
{[%clk 0:02:30.1]} 18... Rxe6 {[%clk 0:00:50.1]} 19. Bxg7 {[%clk 0:02:30.1]}
19... Kxg7 {[%clk 0:00:50.4]} 20. b3 {[%clk 0:02:27.7]} 20... Rb7 {[%clk
0:00:37]} 21. Qd5 {[%clk 0:02:20.5]} 21... Qb8 {[%clk 0:00:35.4]} 22. Qd4+
{[%clk 0:02:17.4]} 22... Kg8 {[%clk 0:00:34.6]} 23. Rc6 {[%clk 0:02:16.8]} 23...
Rb4 {[%clk 0:00:33.4]} 24. Qc3 {[%clk 0:02:15.6]} 24... Qa7+ {[%clk 0:00:12.5]}
25. Kf1 {[%clk 0:02:14.6]} 25... Rb7 {[%clk 0:00:12.7]} 26. Rc1 {[%clk
0:02:13.3]} 26... h5 {[%clk 0:00:12.4]} 27. Rxc7 {[%clk 0:02:06.5]} 27... Rxc7
{[%clk 0:00:12.6]} 28. Qxc7 {[%clk 0:02:07.4]} 28... Qe3 {[%clk 0:00:09.9]} 29.
Qc8+ {[%clk 0:02:06]} 29... Kg7 {[%clk 0:00:09.6]} 30. Qc3+ {[%clk 0:02:06.6]}
30... Qxc3 {[%clk 0:00:09]} 31. Rxc3 {[%clk 0:02:07.5]} 31... Re5 {[%clk
0:00:09.5]} 32. Rd3 {[%clk 0:02:05]} 32... Ra5 {[%clk 0:00:09.4]} 33. a4 {[%clk
0:02:05.3]} 33... Kf6 {[%clk 0:00:09.5]} 34. Rxd6+ {[%clk 0:02:04.5]} 34... Ke5
{[%clk 0:00:09.9]} 35. Rc6 {[%clk 0:01:49.8]} 35... Kd4 {[%clk 0:00:08.5]} 36.
Ke2 {[%clk 0:01:44.4]} 36... Rg5 {[%clk 0:00:07.9]} 37. g3 {[%clk 0:01:44]}
37... h4 {[%clk 0:00:08]} 38. g4 {[%clk 0:01:40.4]} 38... h3 {[%clk 0:00:07.3]}
39. Rxa6 {[%clk 0:01:37.5]} 39... Rc5 {[%clk 0:00:07.1]} 40. Rd6+ {[%clk
0:01:35.4]} 40... Kc3 {[%clk 0:00:06.8]} 41. Rd3+ {[%clk 0:01:35.4]} 41... Kb4
{[%clk 0:00:05.9]} 42. Ke3 {[%clk 0:01:35]} 42... Rc2 {[%clk 0:00:05.8]} 43. Rd2
{[%clk 0:01:30.5]} 43... Rc3+ {[%clk 0:00:06.1]} 44. Kf4 {[%clk 0:01:31]} 44...
Rxb3 {[%clk 0:00:06.2]} 45. Rd4+ {[%clk 0:01:29.5]} 45... Kc5 {[%clk 0:00:05.7]}
46. Rd7 {[%clk 0:01:28.4]} 46... Ra3 {[%clk 0:00:03.5]} 47. Rxf7 {[%clk
0:01:28.1]} 47... Rxa4 {[%clk 0:00:03.3]} 48. Rf6 {[%clk 0:01:28.1]} 48... g5+
{[%clk 0:00:02.8]} 49. Kxg5 {[%clk 0:01:27.4]} 49... Ra2 {[%clk 0:00:02.8]} 50.
Kf4 {[%clk 0:01:24.5]} 50... Rxh2 {[%clk 0:00:03.7]} 51. Rh6 {[%clk 0:01:24.6]}
51... Rh1 {[%clk 0:00:04.6]} 52. Kg3 {[%clk 0:01:24.5]} 52... Kd4 {[%clk
0:00:05.3]} 53. Rxh3 {[%clk 0:01:24.4]} 53... Rg1+ {[%clk 0:00:06.2]} 54. Kf4
{[%clk 0:01:24.5]} 54... Ra1 {[%clk 0:00:07]} 55. Rh5 {[%clk 0:01:24]} 55... Ra8
{[%clk 0:00:07.3]} 56. Rd5+ {[%clk 0:01:24.1]} 56... Kc4 {[%clk 0:00:05.9]} 57.
Rd1 {[%clk 0:01:24.1]} 57... Rf8+ {[%clk 0:00:06.8]} 58. Ke3 {[%clk 0:01:24.2]}
58... Kc5 {[%clk 0:00:06.9]} 59. f4 {[%clk 0:01:24.3]} 59... Kc6 {[%clk
0:00:07.4]} 60. e5 {[%clk 0:01:24.4]} 60... Kc7 {[%clk 0:00:08.3]} 61. Ke4
{[%clk 0:01:24.1]} 61... Rh8 {[%clk 0:00:08.7]} 62. g5 {[%clk 0:01:23.7]} 62...
Rh2 {[%clk 0:00:09.2]} 63. Kf5 {[%clk 0:01:23.8]} 63... Re2 {[%clk 0:00:09.7]}
64. e6 {[%clk 0:01:23.8]} 64... Rg2 {[%clk 0:00:10.4]} 65. Kf6 {[%clk
0:01:23.8]} 65... Re2 {[%clk 0:00:11]} 66. f5 {[%clk 0:01:23.9]} 66... Re3
{[%clk 0:00:11.6]} 67. g6 {[%clk 0:01:24.1]} 67... Re2 {[%clk 0:00:12.5]} 68. g7
{[%clk 0:01:23.1]} 68... Rg2 {[%clk 0:00:13.4]} 69. Kf7 {[%clk 0:01:21.1]} 69...
Re2 {[%clk 0:00:14.3]} 70. f6 {[%clk 0:01:21.2]} 70... Re4 {[%clk 0:00:15.2]}
71. e7 {[%clk 0:01:21.3]} 71... Rg4 {[%clk 0:00:16.1]} 72. Rd7+ {[%clk
0:01:19.8]} 72... Kc6 {[%clk 0:00:15.6]} 73. Rc7+ {[%clk 0:01:18.6]} 73... Kxc7
{[%clk 0:00:15.4]} 74. e8=Q {[%clk 0:01:18.6]} 74... Rc4 {[%clk 0:00:15.1]} 75.
Qe7+ {[%clk 0:01:17.5]} 75... Kc6 {[%clk 0:00:15.3]} 76. Qe6+ {[%clk 0:01:17.9]}
76... Kc5 {[%clk 0:00:15.4]} 77. Qxc4+ {[%clk 0:01:18.8]} 77... Kxc4 {[%clk
0:00:15.8]} 78. g8=Q {[%clk 0:01:16.5]} 78... Kd4 {[%clk 0:00:16.7]} 79. Qe8
{[%clk 0:01:16.6]} 79... Kc3 {[%clk 0:00:16.6]} 80. Qe4 {[%clk 0:01:16.2]} 80...
Kb2 {[%clk 0:00:16.1]} 81. Ke6 {[%clk 0:01:16.8]} 81... Kc1 {[%clk 0:00:16.9]}
82. f7 {[%clk 0:01:17.2]} 82... Kd1 {[%clk 0:00:17.8]} 83. Qg2 {[%clk
0:01:17.4]} 83... Kc1 {[%clk 0:00:17.9]} 84. f8=Q {[%clk 0:01:17.1]} 84... Kb1
{[%clk 0:00:18.8]} 85. Qff1# {[%clk 0:01:17.4]} 1-0

[Event "*** Titled Tuesday Blitz"]
[Site "Chess.com"]
[Date "2020.12.29"]
[Round "6"]
[White "Parhamov"]
[Black "kingofthenil"]
[Result "0-1"]
[WhiteElo "2932"]
[BlackElo "2758"]
[TimeControl "180+1"]
[EndTime "11:06:44 PST"]
[Termination "kingofthenil won by resignation"]

1. d4 {[%clk 0:03:00.9]} 1... Nf6 {[%clk 0:02:57.2]} 2. c4 {[%clk 0:03:00.5]}
2... e6 {[%clk 0:02:50.3]} 3. g3 {[%clk 0:03:00.3]} 3... d5 {[%clk 0:02:50.4]}
4. Bg2 {[%clk 0:03:00.6]} 4... Be7 {[%clk 0:02:50.9]} 5. Nf3 {[%clk 0:03:00.7]}
5... O-O {[%clk 0:02:51.4]} 6. O-O {[%clk 0:03:01.3]} 6... c6 {[%clk 0:02:48.3]}
7. b3 {[%clk 0:02:59.1]} 7... b6 {[%clk 0:02:44.6]} 8. Bb2 {[%clk 0:02:59.4]}
8... Nbd7 {[%clk 0:02:44.2]} 9. Qc2 {[%clk 0:02:58.8]} 9... a5 {[%clk
0:02:44.2]} 10. Rd1 {[%clk 0:02:58.5]} 10... Ba6 {[%clk 0:02:42.4]} 11. Nbd2
{[%clk 0:02:58.4]} 11... Rc8 {[%clk 0:02:37.7]} 12. e4 {[%clk 0:02:58.6]} 12...
h6 {[%clk 0:02:24.1]} 13. Rac1 {[%clk 0:02:47.8]} 13... Bb7 {[%clk 0:02:06]} 14.
e5 {[%clk 0:02:45.9]} 14... Ne8 {[%clk 0:02:06]} 15. cxd5 {[%clk 0:02:45.9]}
15... cxd5 {[%clk 0:02:04.3]} 16. Qb1 {[%clk 0:02:45.8]} 16... Ba6 {[%clk
0:02:02]} 17. h4 {[%clk 0:02:45.2]} 17... Nc7 {[%clk 0:01:55.2]} 18. Bf1 {[%clk
0:02:43.1]} 18... Bxf1 {[%clk 0:01:54.5]} 19. Nxf1 {[%clk 0:02:44]} 19... Nb5
{[%clk 0:01:42.3]} 20. Ne3 {[%clk 0:02:40.6]} 20... Rxc1 {[%clk 0:01:24.2]} 21.
Rxc1 {[%clk 0:02:40.3]} 21... Qb8 {[%clk 0:01:22.5]} 22. Qd3 {[%clk 0:02:37.4]}
22... Na7 {[%clk 0:01:21.2]} 23. Ng4 {[%clk 0:02:32]} 23... Rc8 {[%clk
0:01:18.6]} 24. h5 {[%clk 0:02:32.5]} 24... b5 {[%clk 0:01:09.7]} 25. Bc3 {[%clk
0:02:27.7]} 25... b4 {[%clk 0:00:54.3]} 26. Bd2 {[%clk 0:02:27.8]} 26... Rxc1+
{[%clk 0:00:55.2]} 27. Bxc1 {[%clk 0:02:28.7]} 27... Qb5 {[%clk 0:00:56]} 28.
Qc2 {[%clk 0:02:26.8]} 28... Qc6 {[%clk 0:00:55.6]} 29. Qb2 {[%clk 0:02:18.1]}
29... Nb5 {[%clk 0:00:43.5]} 30. Bd2 {[%clk 0:02:17.7]} 30... Bf8 {[%clk
0:00:41]} 31. Kg2 {[%clk 0:02:17]} 31... Na3 {[%clk 0:00:41.1]} 32. Ne1 {[%clk
0:02:10.7]} 32... Nb6 {[%clk 0:00:33.5]} 33. Be3 {[%clk 0:02:05.6]} 33... Nb5
{[%clk 0:00:30.7]} 34. Qb1 {[%clk 0:02:01.6]} 34... Qc3 {[%clk 0:00:23.6]} 35.
Nf3 {[%clk 0:01:55]} 35... Na3 {[%clk 0:00:22.5]} 36. Qf1 {[%clk 0:01:55.2]}
36... Qc6 {[%clk 0:00:12.4]} 37. Qa6 {[%clk 0:01:54]} 37... Qb5 {[%clk
0:00:12.2]} 38. Qa7 {[%clk 0:01:53.1]} 38... Nc8 {[%clk 0:00:08]} 39. Qc7 {[%clk
0:01:50.5]} 39... Ne7 {[%clk 0:00:08.2]} 40. Nh4 {[%clk 0:01:27.6]} 40... Qe2
{[%clk 0:00:06.6]} 41. Nf6+ {[%clk 0:01:19.1]} 41... gxf6 {[%clk 0:00:06.6]} 42.
exf6 {[%clk 0:01:20]} 42... Nf5 {[%clk 0:00:04.9]} 43. Nxf5 {[%clk 0:01:20]}
43... exf5 {[%clk 0:00:05.8]} 44. Qxa5 {[%clk 0:01:16.8]} 44... Nc2 {[%clk
0:00:04.9]} 45. Bxh6 {[%clk 0:01:05.6]} 45... Ne1+ {[%clk 0:00:05]} 46. Kg1
{[%clk 0:01:05.8]} 46... Nf3+ {[%clk 0:00:05.1]} 47. Kg2 {[%clk 0:01:06.2]}
47... Ne1+ {[%clk 0:00:04.2]} 48. Kg1 {[%clk 0:01:06.3]} 48... Nf3+ {[%clk
0:00:04.8]} 49. Kg2 {[%clk 0:01:06.4]} 49... Bxh6 {[%clk 0:00:05.5]} 50. Qd8+
{[%clk 0:01:06]} 50... Bf8 {[%clk 0:00:05.9]} 51. h6 {[%clk 0:01:06.8]} 51...
Ne1+ {[%clk 0:00:06]} 52. Kg1 {[%clk 0:01:07]} 52... Qh5 {[%clk 0:00:05.9]} 53.
h7+ {[%clk 0:00:56.7]} 53... Qxh7 {[%clk 0:00:05.8]} 54. Qxd5 {[%clk 0:00:57]}
54... Qh5 {[%clk 0:00:05.4]} 55. f4 {[%clk 0:00:47.8]} 55... Nf3+ {[%clk
0:00:05.7]} 56. Kf2 {[%clk 0:00:48.2]} 56... Nd2 {[%clk 0:00:06.3]} 57. Qg2
{[%clk 0:00:46.6]} 57... Ne4+ {[%clk 0:00:06.1]} 58. Ke3 {[%clk 0:00:47.2]}
58... Nxf6 {[%clk 0:00:06.7]} 59. Kd3 {[%clk 0:00:46.8]} 59... Qg4 {[%clk
0:00:06.4]} 60. Kc4 {[%clk 0:00:45.7]} 60... Ne4 {[%clk 0:00:06.3]} 0-1

[Event "*** Titled Tuesday Blitz"]
[Site "Chess.com"]
[Date "2020.12.29"]
[Round "6"]
[White "AlessiaSanteramo"]
[Black "lamomiablanca"]
[Result "1-0"]
[WhiteElo "2149"]
[BlackElo "2278"]
[TimeControl "180+1"]
[EndTime "11:06:46 PST"]
[Termination "AlessiaSanteramo won on time"]

1. e4 {[%clk 0:03:00.9]} 1... c5 {[%clk 0:02:58.9]} 2. Nf3 {[%clk 0:02:59.1]}
2... Nc6 {[%clk 0:02:58.8]} 3. Bb5 {[%clk 0:02:57.8]} 3... g6 {[%clk 0:02:56]}
4. Bxc6 {[%clk 0:02:57.7]} 4... dxc6 {[%clk 0:02:55.8]} 5. d3 {[%clk 0:02:58]}
5... Bg7 {[%clk 0:02:54.9]} 6. h3 {[%clk 0:02:58.9]} 6... Nf6 {[%clk 0:02:52.6]}
7. a4 {[%clk 0:02:58.9]} 7... a5 {[%clk 0:02:51.5]} 8. Nc3 {[%clk 0:02:58.8]}
8... O-O {[%clk 0:02:51.2]} 9. Be3 {[%clk 0:02:59]} 9... b6 {[%clk 0:02:51.2]}
10. Qd2 {[%clk 0:02:58.6]} 10... e5 {[%clk 0:02:50.4]} 11. Nxe5 {[%clk
0:02:55.4]} 11... Nxe4 {[%clk 0:02:49.9]} 12. Nxc6 {[%clk 0:02:14.1]} 12... Nxd2
{[%clk 0:02:48.3]} 13. Nxd8 {[%clk 0:02:13.6]} 13... Nb3 {[%clk 0:02:48.5]} 14.
cxb3 {[%clk 0:02:08.2]} 14... Rxd8 {[%clk 0:02:47.2]} 15. Ke2 {[%clk 0:02:07.5]}
15... Be6 {[%clk 0:02:45.6]} 16. Rad1 {[%clk 0:01:42.4]} 16... Bxb3 {[%clk
0:02:43.7]} 17. Rd2 {[%clk 0:01:42.5]} 17... Bxc3 {[%clk 0:02:41.2]} 18. bxc3
{[%clk 0:01:40.2]} 18... Bxa4 {[%clk 0:02:41.6]} 19. Rb1 {[%clk 0:01:38.7]}
19... Rab8 {[%clk 0:02:39.9]} 20. Rdb2 {[%clk 0:01:36.8]} 20... Rd6 {[%clk
0:02:31.7]} 21. Bxc5 {[%clk 0:01:31.7]} 21... Re8+ {[%clk 0:02:24.1]} 22. Be3
{[%clk 0:01:31.4]} 22... b5 {[%clk 0:02:23.9]} 23. Ra1 {[%clk 0:01:29.1]} 23...
Red8 {[%clk 0:02:14.3]} 24. d4 {[%clk 0:01:04.5]} 24... Rc8 {[%clk 0:02:10.7]}
25. Kd3 {[%clk 0:00:48.1]} 25... Rc4 {[%clk 0:02:05.5]} 26. Bd2 {[%clk
0:00:33.8]} 26... Rdc6 {[%clk 0:01:39.7]} 27. Re1 {[%clk 0:00:31.3]} 27... Rc8
{[%clk 0:01:11.3]} 28. Re5 {[%clk 0:00:24.4]} 28... Kg7 {[%clk 0:00:54.6]} 29.
f4 {[%clk 0:00:24.1]} 29... Kf8 {[%clk 0:00:50.4]} 30. g4 {[%clk 0:00:24.3]}
30... f6 {[%clk 0:00:50.1]} 31. Re6 {[%clk 0:00:24.2]} 31... Kf7 {[%clk
0:00:50.6]} 32. Re4 {[%clk 0:00:20.4]} 32... b4 {[%clk 0:00:14.3]} 33. cxb4
{[%clk 0:00:20.1]} 33... axb4 {[%clk 0:00:14.1]} 34. Re1 {[%clk 0:00:13.2]}
34... Bc2+ {[%clk 0:00:13.5]} 35. Ke3 {[%clk 0:00:13.1]} 35... b3 {[%clk
0:00:12.9]} 36. Ra1 {[%clk 0:00:09.3]} 36... Re8+ {[%clk 0:00:11]} 37. Kf2
{[%clk 0:00:08.6]} 37... Rc7 {[%clk 0:00:11.3]} 38. Be3 {[%clk 0:00:08.7]} 38...
Rce7 {[%clk 0:00:10.1]} 39. Re1 {[%clk 0:00:07.7]} 39... h6 {[%clk 0:00:08.6]}
40. f5 {[%clk 0:00:07.2]} 40... gxf5 {[%clk 0:00:07]} 41. gxf5 {[%clk
0:00:06.9]} 41... h5 {[%clk 0:00:07.7]} 42. h4 {[%clk 0:00:05.1]} 42... Re4
{[%clk 0:00:07.3]} 43. d5 {[%clk 0:00:04.3]} 43... Rxh4 {[%clk 0:00:05.9]} 44.
d6 {[%clk 0:00:04.1]} 44... Rhe4 {[%clk 0:00:03.2]} 45. d7 {[%clk 0:00:03.9]}
45... Rd8 {[%clk 0:00:03.5]} 46. Bb6 {[%clk 0:00:04.1]} 46... Rxe1 {[%clk
0:00:02]} 47. Bxd8 {[%clk 0:00:02.4]} 47... Rd1 {[%clk 0:00:01.9]} 48. Bxf6
{[%clk 0:00:01.6]} 1-0